fUSD/lending_fUSD_20240222
["ID","MTS","AMOUNT","RATE_DAILY","PERIOD"]
[314862559,1708599050568,-923.25,0.00035616,2]
[314862560,1708599050578,-500.0,0.00035616,2]
[314862561,1708599050587,-500.0,0.00035616,2]
[314862562,1708599050597,-151.0,0.00035616,7]
[314862563,1708599050606,-500.0,0.00035616,2]
[314862564,1708599050615,-1805.29,0.00035616,2]
[314862565,1708599050624,-500.0,0.00035616,2]
[314862566,1708599050633,-822.01,0.00035616,2]
[314862567,1708599050643,-1077.822882,0.00035616,7]
[314862568,1708599050652,-981.93,0.00035616,2]
[314862569,1708599050662,-4420.05,0.00035616,2]
[314862570,1708599050671,-532.94,0.00035616,2]
[314862571,1708599050680,-2066.01,0.00035616,2]
[314862572,1708599050690,-514.85254449,0.00035616,2]
[314862573,1708599050699,-542.18,0.00035616,2]
[314862574,1708599050709,-1077.822882,0.00035616,7]
[314862575,1708599050720,-1168.622611,0.00035616,7]
[314862576,1708599050729,-500.0,0.00035616,2]
[314862577,1708599050739,-500.0,0.00035616,2]
[314862578,1708599050749,-654.0,0.00035616,2]
[314862579,1708599050758,-500.0,0.00035616,2]
[314862580,1708599050768,-2161.905199,0.00035616,7]
[314862581,1708599050777,-500.0,0.00035616,2]
[314862582,1708599050787,-500.0,0.00035616,2]
[314862583,1708599050797,-1168.622611,0.00035616,7]
[314862584,1708599050807,-500.0,0.00035616,2]
[314862585,1708599050816,-2161.905199,0.00035616,7]
[314862586,1708599050825,-832.9,0.00035616,2]
[314862587,1708599050834,-668.37,0.00035616,2]
[314862588,1708599050844,-10074.73,0.00035616,2]
[314862589,1708599050853,-1886.43,0.00035616,2]
[314862590,1708599050864,-4518.74,0.00035616,2]
[314862591,1708599050874,-658.37,0.00035616,2]
[314862592,1708599050884,-652.95,0.00035616,2]
[314862593,1708599050893,-500.0,0.00035616,2]
[314862594,1708599050902,-500.0,0.00035616,2]
[314862595,1708599050913,-500.0,0.00035616,2]
[314862596,1708599050922,-177.800882,0.00035616,7]
[314862597,1708599050932,-513.89,0.00035616,2]
[314862598,1708599050943,-2531.25,0.00035616,2]
[314862599,1708599050953,-777.39,0.00035616,2]
[314862600,1708599050963,-1500.41,0.00035616,2]
[314862601,1708599050977,-500.0,0.00035616,2]
[314862602,1708599050988,-573.89,0.00035616,2]
[314862603,1708599050998,-723.14,0.00035616,2]
[314862604,1708599051008,-177.800882,0.00035616,7]
[314862605,1708599051017,-12836.43,0.00035616,2]
[314862606,1708599051028,-500.0,0.00035616,2]
[314862607,1708599051038,-500.0,0.00035616,2]
[314862608,1708599051048,-534.15,0.00035616,2]
[314862609,1708599051058,-1959.02,0.00035616,2]
[314862610,1708599051068,-706.44,0.00035616,2]
[314862611,1708599051078,-805.01,0.00035616,2]
[314862612,1708599051088,-500.0,0.00035616,2]
[314862613,1708599051097,-1663.86,0.00035616,2]
[314862614,1708599051106,-500.0,0.00035616,2]
[314862615,1708599051116,-897.86,0.00035616,2]
[314862616,1708599051126,-1561.94,0.00035616,2]
[314862617,1708599051136,-1210.5,0.00035616,2]
[314862618,1708599051145,-500.0,0.00035616,2]
[314862619,1708599051155,-1571.35,0.00035616,2]
[314862620,1708599051164,-500.0,0.00035616,2]
[314862621,1708599051174,-646.02,0.00035616,2]
[314862622,1708599051184,-151.0,0.00035616,7]
[314862623,1708599051193,-500.0,0.00035616,2]
[314862624,1708599051203,-500.0,0.00035616,2]
[314862625,1708599051213,-579.47171875,0.00035616,2]
[314862626,1708599051227,-500.0,0.00035616,2]
[314862627,1708599051237,-151.0,0.00035616,7]
[314862628,1708599051246,-500.0,0.00035616,2]
[314862629,1708599051256,-1940.55,0.00035616,2]
[314862630,1708599051265,-500.0,0.00035616,2]
[314862631,1708599051274,-610.52,0.00035616,2]
[314862632,1708599051284,-500.0,0.00035616,2]
[314862633,1708599051294,-500.0,0.00035616,2]
[314862634,1708599051304,-611.57,0.00035616,2]
[314862635,1708599051314,-252.75617,0.00035616,7]
[314862636,1708599051324,-500.0,0.00035616,2]
[314862637,1708599051334,-827.27,0.00035616,2]
[314862638,1708599051343,-510.63133199,0.00035616,2]
[314862639,1708599051353,-1320.49,0.00035616,2]
[314862640,1708599051362,-514.92407078,0.00035616,2]
[314862641,1708599051371,-252.75617,0.00035616,7]
[314862642,1708599051381,-500.0,0.00035616,2]
[314862643,1708599051391,-1346.33,0.00035616,2]
[314862644,1708599051400,-779.87,0.00035616,2]
[314862645,1708599051410,-2644.4,0.00035616,2]
[314862646,1708599051420,-644.12,0.00035616,2]
[314862647,1708599051429,-500.0,0.00035616,2]
[314862648,1708599051438,-151.0,0.00035616,7]
[314862649,1708599051447,-500.0,0.00035616,2]
[314862650,1708599051457,-505.5088808,0.00035616,2]
[314862651,1708599051471,-500.0,0.00035616,2]
[314862652,1708599051480,-500.0,0.00035616,2]
[314862653,1708599051489,-500.0,0.00035616,2]
[314862654,1708599051499,-416.74072261,0.00035616,2]
[314862655,1708599051510,-500.0,0.00035616,2]
[314862656,1708599051519,-151.0,0.00035616,7]
[314862657,1708599051529,-514.98,0.00035616,2]
[314862658,1708599051538,-225.29949757,0.00035616,2]
[314862659,1708599051548,-1478.58,0.00035616,2]
[314862660,1708599051557,-1181.04,0.00035616,2]
[314862661,1708599051567,-617.81,0.00035616,2]
[314862662,1708599051576,-595.83,0.00035616,2]
[314862663,1708599051585,-500.0,0.00035616,2]
[314862664,1708599051595,-1134.59,0.00035616,2]
[314862665,1708599051604,-516.09,0.00035616,2]
[314862666,1708599051613,-500.0,0.00035616,2]
[314862667,1708599051623,-2579.11,0.00035616,2]
[314862668,1708599051632,-505.75933564,0.00035616,2]
[314862669,1708599051641,-1780.84,0.00035616,2]
[314862670,1708599051651,-3156.54,0.00035616,2]
[314862671,1708599051660,-975.67,0.00035616,2]
[314862672,1708599051670,-5227.86,0.00035616,2]
[314862673,1708599051680,-1047.9,0.00035616,2]
[314862674,1708599051689,-1183.886657,0.00035616,7]
[314862675,1708599051699,-500.0,0.00035616,2]
[314862676,1708599051708,-345.37109812,0.00035616,2]
[314862677,1708599051719,-770.43,0.00035616,2]
[314862678,1708599051729,-499.20008893,0.00035616,2]
[314862679,1708599051738,-968.1,0.00035616,2]
[314862680,1708599051747,-702.85,0.00035616,2]
[314862681,1708599051757,-970.74,0.00035616,2]
[314862682,1708599051766,-635.33,0.00035616,2]
[314862683,1708599051775,-748.8,0.00035616,2]
[314862684,1708599051784,-1183.886657,0.00035616,7]
[314862685,1708599051793,-2369.381539,0.00035616,7]
[314862686,1708599051802,-150.0,0.00035616,2]
[314862687,1708599051812,-500.0,0.00035616,2]
[314862688,1708599051821,-500.0,0.00035616,2]
[314862689,1708599051830,-500.0,0.00035616,2]
[314862690,1708599051839,-1838.65,0.00035616,2]
[314862691,1708599051848,-500.0,0.00035616,2]
[314862692,1708599051857,-522.70204724,0.00035616,2]
[314862693,1708599051869,-742.46,0.00035616,2]
[314862694,1708599051878,-151.0,0.00035616,7]
[314862695,1708599051886,-2661.95,0.00035616,2]
[314862696,1708599051895,-2369.381539,0.00035616,7]
[314862697,1708599051904,-2002.48,0.00035616,2]
[314862698,1708599051914,-500.0,0.00035616,2]
[314862699,1708599051922,-741.61,0.00035616,2]
[314862700,1708599051932,-3135.38,0.00035616,2]
[314862701,1708599051941,-151.0,0.00035616,7]
[314862702,1708599051952,-500.0,0.00035616,2]
[314862703,1708599051961,-500.0,0.00035616,2]
[314862704,1708599051973,-1385.98,0.00035616,2]
[314862705,1708599051982,-500.0,0.00035616,2]
[314862706,1708599051992,-500.0,0.00035616,2]
[314862707,1708599052001,-500.0,0.00035616,2]
[314862708,1708599052010,-156.631726,0.00035616,7]
[314862709,1708599052020,-1033.04,0.00035616,2]
[314862710,1708599052029,-720.92,0.00035616,2]
[314862711,1708599052038,-1412.29,0.00035616,2]
[314862712,1708599052048,-500.0,0.00035616,2]
[314862713,1708599052057,-1792.16,0.00035616,2]
[314862714,1708599052067,-500.0,0.00035616,2]
[314862715,1708599052076,-156.631726,0.00035616,7]
[314862716,1708599052086,-519.37,0.00035616,2]
[314862717,1708599052095,-500.0,0.00035616,2]
[314862718,1708599052104,-943.82,0.00035616,2]
[314862719,1708599052114,-1605.25,0.00035616,2]
[314862720,1708599052123,-500.0,0.00035616,2]
[314862721,1708599052133,-500.0,0.00035616,2]
[314862722,1708599052142,-7064.17,0.00035616,2]
[314862723,1708599052151,-500.0,0.00035616,2]
[314862724,1708599052161,-3107.96,0.00035616,2]
[314862725,1708599052170,-500.0,0.00035616,2]
[314862726,1708599052180,-500.0,0.00035616,2]
[314862727,1708599052189,-1555.61,0.00035616,2]
[314862728,1708599052198,-500.0,0.00035616,2]
[314862729,1708599052208,-1271.06,0.00035616,2]
[314862730,1708599052218,-500.0,0.00035616,2]
[314862731,1708599052228,-500.0,0.00035616,2]
[314862732,1708599052238,-500.0,0.00035616,2]
[314862733,1708599052248,-500.0,0.00035616,2]
[314862734,1708599052257,-1390.62,0.00035616,2]
[314862735,1708599052266,-500.0,0.00035616,2]
[314862736,1708599052276,-518.27,0.00035616,2]
[314862737,1708599052285,-1436.79,0.00035616,2]
[314862738,1708599052295,-1566.53,0.00035616,2]
[314862739,1708599052305,-849.32,0.00035616,2]
[314862740,1708599052314,-500.0,0.00035616,2]
[314862741,1708599052324,-2599.87,0.00035616,2]
[314862742,1708599052333,-500.0,0.00035616,2]
[314862743,1708599052343,-500.0,0.00035616,2]
[314862744,1708599052352,-500.0,0.00035616,2]
[314862745,1708599052361,-500.0,0.00035616,2]
[314862746,1708599052371,-500.0,0.00035616,2]
[314862747,1708599052381,-882.03,0.00035616,2]
[314862748,1708599052390,-672.21,0.00035616,2]
[314862749,1708599052399,-1643.4,0.00035616,2]
[314862750,1708599052409,-500.0,0.00035616,2]
[314862751,1708599052418,-151.0,0.00035616,7]
[314862752,1708599052427,-1128.31,0.00035616,2]
[314862753,1708599052437,-3819.47,0.00035616,2]
[314862754,1708599052447,-2699.38,0.00035616,2]
[314862755,1708599052458,-7858.09,0.00035616,2]
[314862756,1708599052469,-500.0,0.00035616,2]
[314862757,1708599052478,-1723.64,0.00035616,2]
[314862758,1708599052488,-500.0,0.00035616,2]
[314862759,1708599052498,-151.0,0.00035616,7]
[314862760,1708599052508,-846.37,0.00035616,2]
[314862761,1708599052518,-568.63007397,0.00035616,2]
[314862762,1708599052527,-500.0,0.00035616,2]
[314862763,1708599052536,-500.0,0.00035616,2]
[314862764,1708599052545,-500.0,0.00035616,2]
[314862765,1708599052554,-500.0,0.00035616,2]
[314862766,1708599052563,-6737.81,0.00035616,2]
[314862767,1708599052572,-500.0,0.00035616,2]
[314862768,1708599052581,-500.0,0.00035616,2]
[314862769,1708599052590,-5306.13,0.00035616,2]
[314862770,1708599052599,-500.0,0.00035616,2]
[314862771,1708599052608,-153.07968329,0.00035616,2]
[314862772,1708599052618,-605.488866,0.00035616,7]
[314862773,1708599052627,-511.08548479,0.00035616,2]
[314862774,1708599052636,-500.0,0.00035616,2]
[314862775,1708599052646,-519.16,0.00035616,2]
[314862776,1708599052656,-1564.85,0.00035616,2]
[314862777,1708599052665,-3912.39,0.00035616,2]
[314862778,1708599052675,-3556.49,0.00035616,2]
[314862779,1708599052684,-899.59,0.00035616,2]
[314862780,1708599052694,-605.488866,0.00035616,7]
[314862781,1708599052704,-500.0,0.00035616,2]
[314862782,1708599052714,-899.59,0.00035616,2]
[314862783,1708599052725,-899.59,0.00035616,2]
[314862784,1708599052735,-899.59,0.00035616,2]
[314862785,1708599052745,-899.59,0.00035616,2]
[314862786,1708599052754,-899.59,0.00035616,2]
[314862787,1708599052764,-899.59,0.00035616,2]
[314862788,1708599052773,-899.59,0.00035616,2]
[314862789,1708599052783,-500.0,0.00035616,2]
[314862790,1708599052792,-899.59,0.00035616,2]
[314862791,1708599052802,-500.0,0.00035616,2]
[314862792,1708599052812,-899.59,0.00035616,2]
[314862793,1708599052822,-899.59,0.00035616,2]
[314862794,1708599052831,-899.59,0.00035616,2]
[314862795,1708599052841,-899.59,0.00035616,2]
[314862796,1708599052851,-899.59,0.00035616,2]
[314862797,1708599052860,-737.2,0.00035616,2]
[314862798,1708599052873,-899.59,0.00035616,2]
[314862799,1708599052882,-899.59,0.00035616,2]
[314862800,1708599052891,-500.0,0.00035616,2]
[314862801,1708599052901,-899.59,0.00035616,2]
[314862802,1708599052910,-899.59,0.00035616,2]
[314862803,1708599052919,-4003.78,0.00035616,2]
[314862804,1708599052928,-500.0,0.00035616,2]
[314862805,1708599052938,-861.94,0.00035616,2]
[314862806,1708599052947,-931.34,0.00035616,2]
[314862807,1708599053290,-687.42,0.00035616,2]
[314862808,1708599053300,-151.0,0.00035616,7]
[314862809,1708599053311,-1915.09,0.00035616,2]
[314862810,1708599053320,-500.0,0.00035616,2]
[314862811,1708599053330,-1389.69,0.00035616,2]
[314862812,1708599053340,-500.0,0.00035616,2]
[314862813,1708599053349,-1443.85,0.00035616,2]
[314862814,1708599053358,-19090.53,0.00035616,2]
[314862815,1708599053368,-1167.19,0.00035616,2]
[314862816,1708599053377,-500.0,0.00035616,2]
[314862817,1708599053386,-151.0,0.00035616,7]
[314862818,1708599053395,-454.63602002,0.00035616,2]
[314862819,1708599053405,-3578.22,0.00035616,2]
[314862820,1708599053414,-853.179325,0.00035616,7]
[314862821,1708599053423,-2398.81,0.00035616,2]
[314862822,1708599053433,-576.98,0.00035616,2]
[314862823,1708599053442,-500.0,0.00035616,2]
[314862824,1708599053452,-500.0,0.00035616,2]
[314862825,1708599053461,-6664.99,0.00035616,2]
[314862826,1708599053472,-500.0,0.00035616,2]
[314862827,1708599053481,-500.0,0.00035616,2]
[314862828,1708599053490,-1325.15,0.00035616,2]
[314862829,1708599053500,-853.179325,0.00035616,7]
[314862830,1708599053509,-500.0,0.00035616,2]
[314862831,1708599053518,-1084.84,0.00035616,2]
[314862832,1708599053527,-2313.0,0.00035616,5]
[314862833,1708599053537,-1107.68766401,0.00035619,2]
[314862834,1708599053546,-851.66344248,0.00035626,8]
[314862835,1708599053556,-1018.29,0.00035627,2]
[314862836,1708599053565,-1156.0357762,0.00035646,2]
[314862837,1708599053575,-150.0,0.00035649,2]
[314862838,1708599053584,-318.405165,0.00035653,2]
[314862839,1708599053593,-139635.70584551,0.00035667,15]
[314862840,1708599053603,-10881.12503433,0.00035667,11]
[314862841,1708599053612,-25298.80245154,0.00035667,12]
[314862842,1708599053622,-30975.74285421,0.00035667,15]
[314862843,1708599053631,-2704.92,0.00035691,2]
[314862844,1708599053641,-1880.421,0.00035691,2]
[314862845,1708599053650,-1382.272,0.00035691,2]
[314862846,1708599053659,-717.386,0.00035691,2]
[314862847,1708599053669,-961.016,0.00035691,2]
[314862848,1708599053678,-549.336,0.00035691,2]
[314862849,1708599053688,-458.0,0.00035691,2]
[314862850,1708599053697,-354.558,0.00035691,2]
[314862851,1708599053706,-1285.822,0.00035691,2]
[314862852,1708599053715,-216.0,0.00035691,2]
[314862853,1708599053726,-858.0,0.00035691,2]
[314862854,1708599053736,-429.0,0.00035691,2]
[314862855,1708599053745,-302.0,0.00035691,2]
[314862856,1708599053755,-315.688,0.00035691,2]
[314862857,1708599053765,-5689.776,0.00035691,2]
[314862858,1708599053775,-7819.786,0.00035691,2]
[314862859,1708599053784,-7427.0,0.00035691,2]
[314862860,1708599053794,-17511.676,0.00035691,2]
[314862861,1708599053804,-2294.0,0.00035691,2]
[314862862,1708599053814,-150.1,0.00035691,2]
[314862863,1708599053824,-150.318,0.00035691,2]
[314862864,1708599053833,-150.282,0.00035691,2]
[314862865,1708599053843,-150.0,0.00035691,2]
[314862866,1708599053853,-201.069,0.00035691,2]
[314862867,1708599053862,-171.671,0.00035691,2]
[314862868,1708599053875,-249.818,0.00035691,2]
[314862869,1708599053885,-300.314725,0.00035692,7]
[314862870,1708599053895,-151.0,0.00035692,7]
[314862871,1708599053904,-271.160576,0.00035692,7]
[314862872,1708599053914,-151.0,0.00035692,7]
[314862873,1708599053923,-366.507975,0.00035692,7]
[314862874,1708599053933,-151.0,0.00035692,7]
[314862875,1708599053943,-366.507975,0.00035692,7]
[314862876,1708599053953,-151.0,0.00035692,7]
[314862877,1708599053963,-151.0,0.00035692,7]
[314862878,1708599053973,-151.0,0.00035692,7]
[314862879,1708599053982,-283.387021,0.00035692,7]
[314862880,1708599053991,-283.387021,0.00035692,7]
[314862881,1708599054000,-209.351015,0.00035692,7]
[314862882,1708599054010,-151.0,0.00035692,7]
[314862883,1708599054019,-209.351015,0.00035692,7]
[314862884,1708599054028,-151.0,0.00035692,7]
[314862885,1708599054037,-151.0,0.00035692,7]
[314862886,1708599054046,-1076.58472,0.00035692,7]
[314862887,1708599054054,-1076.58472,0.00035692,7]
[314862888,1708599054064,-151.0,0.00035692,7]
[314862889,1708599054072,-151.0,0.00035692,7]
[314862890,1708599054081,-174.518502,0.00035692,7]
[314862891,1708599054089,-424.973506,0.00035692,7]
[314862892,1708599054097,-174.518502,0.00035692,7]
[314862893,1708599054106,-424.973506,0.00035692,7]
[314862894,1708599054114,-190.397968,0.00035692,7]
[314862895,1708599054123,-192.476707,0.00035692,7]
[314862896,1708599054132,-151.0,0.00035692,7]
[314862897,1708599054140,-192.476707,0.00035692,7]
[314862898,1708599054149,-151.0,0.00035692,7]
[314862899,1708599054158,-1077.822882,0.00035692,7]
[314862900,1708599054167,-1077.822882,0.00035692,7]
[314862901,1708599054176,-1168.622611,0.00035692,7]
[314862902,1708599054184,-2161.905199,0.00035692,7]
[314862903,1708599054193,-1168.622611,0.00035692,7]
[314862904,1708599054202,-2161.905199,0.00035692,7]
[314862905,1708599054211,-177.800882,0.00035692,7]
[314862906,1708599054220,-177.800882,0.00035692,7]
[314862907,1708599054230,-151.0,0.00035692,7]
[314862908,1708599054239,-249.113962,0.00035692,7]
[314862909,1708599054248,-252.75617,0.00035692,7]
[314862910,1708599054257,-252.75617,0.00035692,7]
[314862911,1708599054266,-151.0,0.00035692,7]
[314862912,1708599054275,-151.0,0.00035692,7]
[314862913,1708599054284,-1183.886657,0.00035692,7]
[314862914,1708599054293,-1183.886657,0.00035692,7]
[314862915,1708599054302,-2369.381539,0.00035692,7]
[314862916,1708599054311,-151.0,0.00035692,7]
[314862917,1708599054320,-2369.381539,0.00035692,7]
[314862918,1708599054328,-151.0,0.00035692,7]
[314862919,1708599054337,-156.631726,0.00035692,7]
[314862920,1708599054345,-156.631726,0.00035692,7]
[314862921,1708599054354,-151.0,0.00035692,7]
[314862922,1708599054362,-151.0,0.00035692,7]
[314862923,1708599054370,-605.488866,0.00035692,7]
[314862924,1708599054378,-605.488866,0.00035692,7]
[314862925,1708599054386,-151.0,0.00035692,7]
[314862926,1708599054394,-151.0,0.00035692,7]
[314862927,1708599054403,-853.179325,0.00035692,7]
[314862928,1708599054411,-853.179325,0.00035692,7]
[314862929,1708599054419,-354.94,0.00035696,2]
[314862930,1708599054429,-159.0,0.00035699,5]
[314862931,1708599054438,-3953.98994496,0.00035706,2]
[314862932,1708599054446,-338.08909729,0.00035706,2]
[314862933,1708599054454,-899.59,0.0003571,2]
[314862934,1708599054462,-561.7091,0.00035711,2]
[314862935,1708599054471,-5355.18,0.00035712,2]
[314862936,1708599054480,-150.0,0.00035744,2]
[314862937,1708599054488,-851.66344248,0.00035767,8]
[314862938,1708599054497,-156.98283338,0.00035778,25]
[314862939,1708599054506,-151.0,0.0003579,7]
[314862940,1708599054514,-151.0,0.0003579,7]
[314862941,1708599054521,-151.0,0.0003579,7]
[314862942,1708599054528,-151.0,0.0003579,7]
[314862943,1708599054535,-151.0,0.0003579,7]
[314862944,1708599054541,-151.0,0.0003579,7]
[314862945,1708599054548,-695.263718,0.0003579,7]
[314862946,1708599054554,-695.263718,0.0003579,7]
[314862947,1708599054560,-345.316945,0.0003579,7]
[314862948,1708599054566,-151.0,0.0003579,7]
[314862949,1708599054573,-345.316945,0.0003579,7]
[314862950,1708599054579,-356.610309,0.0003579,7]
[314862951,1708599054587,-356.610309,0.0003579,7]
[314862952,1708599054594,-382.013075,0.0003579,7]
[314862953,1708599054600,-382.013075,0.0003579,7]
[314862954,1708599054606,-151.0,0.0003579,7]
[314862955,1708599054613,-151.0,0.0003579,7]
[314862956,1708599054620,-203.021416,0.0003579,7]
[314862957,1708599054628,-203.021416,0.0003579,7]
[314862958,1708599054635,-151.0,0.0003579,3]
[314862959,1708599054641,-151.0,0.0003579,7]
[314862960,1708599054648,-151.0,0.0003579,7]
[314862961,1708599054657,-151.0,0.0003579,7]
[314862962,1708599054665,-151.0,0.0003579,7]
[314862963,1708599054672,-151.0,0.0003579,7]
[314862964,1708599054678,-151.0,0.0003579,7]
[314862965,1708599054685,-232.697191,0.0003579,2]
[314862966,1708599054691,-232.697191,0.0003579,2]
[314862967,1708599054697,-737.06,0.00035798,2]
[314862968,1708599054705,-12593.73,0.000358,2]
[314862969,1708599054712,-5133.706466,0.000358,3]
[314862970,1708599054720,-1000.0,0.000358,7]
[314862971,1708599054729,-362.59324051,0.0003581,2]
[314862972,1708599054736,-1018.29,0.00035811,2]
[314862973,1708599054743,-152.21040494,0.00035823,2]
[314862974,1708599054750,-273.17038603,0.00035835,7]
[314862975,1708599054757,-151.0,0.00035877,7]
[314862976,1708599054763,-250.045809,0.00035877,7]
[314862977,1708599054770,-250.045809,0.00035877,7]
[314862978,1708599054776,-151.0,0.00035877,7]
[314862979,1708599054783,-151.0,0.00035877,7]
[314862980,1708599054790,-151.0,0.00035877,7]
[314862981,1708599054797,-323.233825,0.00035877,7]
[314862982,1708599054804,-323.233825,0.00035877,7]
[314862983,1708599054810,-1018.645365,0.00035877,7]
[314862984,1708599054817,-1018.645365,0.00035877,7]
[314862985,1708599054823,-2513.3280431,0.00035877,2]
[314862986,1708599054830,-5463.1502759,0.00035877,2]
[314862987,1708599054839,-4231.97716636,0.00035877,2]
[314862988,1708599054883,-322.06295533,0.00035616,2]
[314862989,1708599054903,-189.20569423,0.00035616,2]
[314862990,1708599054910,-380.65250164,0.00035877,2]
[314862991,1708599055046,-405.00113522,0.00035877,2]
[314862992,1708599055056,-661.63740925,0.00035877,2]
[314862993,1708599055064,-13198.96214413,0.00035877,2]
[314862994,1708599055071,-5176.71755,0.00035877,2]
[314862995,1708599055078,-43899.0781332,0.00035877,2]
[314862996,1708599055086,-151.0,0.00035878,7]
[314862997,1708599055094,-151.0,0.00035878,7]
[314862998,1708599055102,-151.0,0.00035878,7]
[314862999,1708599055110,-151.0,0.00035878,7]
[314863000,1708599055117,-151.0,0.00035878,7]
[314863001,1708599055125,-151.0,0.00035878,7]
[314863002,1708599055132,-406.854046,0.00035878,7]
[314863003,1708599055138,-406.854046,0.00035878,7]
[314863004,1708599055145,-311.994668,0.00035878,7]
[314863005,1708599055153,-151.0,0.00035878,7]
[314863006,1708599055160,-311.994668,0.00035878,7]
[314863007,1708599055167,-151.0,0.00035878,7]
[314863008,1708599055174,-150.0,0.00035881,2]
[314863009,1708599055181,-150.0,0.00035889,30]
[314863010,1708599055188,-150.0,0.00035889,30]
[314863011,1708599055196,-150.0,0.00035889,30]
[314863012,1708599055203,-150.0,0.00035889,30]
[314863013,1708599055211,-162.45994033,0.00035889,2]
[314863014,1708599055219,-1214.43195941,0.00035889,2]
[314863015,1708599055230,-284.51375948,0.00035889,2]
[314863016,1708599055241,-3482.8184999,0.00035889,2]
[314863017,1708599055249,-321.68893254,0.00035889,30]
[314863018,1708599055256,-1500.0,0.00035889,2]
[314863019,1708599055263,-150.0,0.00035889,2]
[314863020,1708599055272,-899.59,0.00035889,2]
[314863021,1708599055279,-154.41252787,0.00035889,2]
[314863022,1708599055993,-500.0,0.00035616,2]
[314863023,1708599056002,-249.65,0.00035889,2]
[314863024,1708599056017,-448.62903417,0.00035889,2]
[314863025,1708599056028,-46.89843796,0.00035889,2]
[314863026,1708599056038,-899.59,0.00035889,2]
[314863027,1708599056047,-899.59,0.00035889,2]
[314863028,1708599056056,-899.62300003,0.00035889,2]
[314863029,1708599056065,-3474.18724638,0.0003589,4]
[314863030,1708599056076,-1083.08318788,0.0003589,4]
[314863031,1708599056087,-1282.3,0.0003589,4]
[314863032,1708599056110,-704.38,0.00035616,2]
[314863033,1708599056119,-4873.61999999,0.0003589,4]
[314863034,1708599056231,-1773.12611585,0.0003589,4]
[314863035,1708599056243,-899.85,0.0003589,4]
[314863036,1708599056259,-266.38979676,0.0003589,4]
[314863038,1708599070496,832.0,0.0002509,2]
[314863039,1708599071759,19800.00137353,0.000264,2]
[314863041,1708599176329,2380.57498897,0.000263,2]
[314863047,1708599331506,-651.74956774,0.00027158,2]
[314863048,1708599331527,-690.44253496,0.000272,2]
[314863049,1708599331548,-5332.8078973,0.00028,2]
[314863050,1708599540354,1066.0,0.00029,120]
[314863051,1708599564168,1239.0,0.00029,120]
[314863082,1708600209694,614.31,0.00026921,2]
[314863099,1708600231851,-416.78628203,0.00027146,2]
[314863100,1708600231862,-430.00747052,0.00027147,2]
[314863101,1708600231872,-51.11876294,0.00027152,2]
[314863102,1708600231884,-839.88123706,0.00027152,2]
[314863103,1708600231894,-226.30687486,0.00027153,2]
[314863104,1708600231904,-226.30687486,0.00027153,2]
[314863105,1708600231914,-113.90451497,0.00027153,2]
[314863106,1708600231999,-112.40235989,0.00027153,2]
[314863107,1708600232009,-543.12463979,0.00027154,2]
[314863108,1708600232018,-443.04181066,0.00027995,2]
[314863109,1708600232028,-150.0,0.00027997,2]
[314863110,1708600232037,-1039.31392703,0.00027998,2]
[314863111,1708600232047,-155.84526778,0.00027998,2]